bitfinex/quotes_ETHUSD_20260106
["timestamp","ask_amount","ask_price","bid_price","bid_amount"]
[1767716938480,0.17642277,3249.5,3247.7,0.91496582]
[1767716938681,0.00924698,3249.7,3247.8,1.0867624]
[1767716938880,0.80924698,3249.9,3247.8,1.0867624]
[1767716939105,4.82374912,3249.9,3247.9,6.15782504]
[1767716939315,0.94672537,3249.7,3247.8,3.25078464]
[1767716939495,0.93747839,3249.9,3247.8,10.3237651]
[1767716939695,0.00924698,3249.8,3247.9,1.94734233]
[1767716939994,0.93747839,3249.9,3248.0,1.71796582]
[1767716940189,0.93747839,3249.9,3248.0,1.73200728]
[1767716940397,0.00924698,3249.8,3248.1,0.803]
[1767716940578,0.00924698,3249.8,3247.9,1.03237651]
[1767716940579,0.94672537,3249.6,3247.9,1.03237651]
[1767716940784,0.94672537,3249.4,3248.0,0.73621685]
[1767716940983,0.94672537,3249.4,3247.8,3.25078464]
[1767716941284,0.94672537,3249.1,3247.4,6.15876567]
[1767716941479,0.80924698,3249.4,3247.5,0.94204698]
[1767716941911,0.8,3249.5,3247.5,0.94204698]
[1767716942222,0.00924698,3249.5,3247.5,0.94204698]
[1767716943183,0.00924698,3249.5,3247.7,0.94204698]
[1767716943382,0.00924698,3249.5,3247.8,1.51304409]
[1767716943600,0.97426276,3249.6,3247.8,2.45509107]
[1767716943815,0.8,3249.9,3247.9,0.94204698]
[1767716944132,0.00924698,3249.6,3247.9,0.94204698]
[1767716944304,0.00924698,3249.6,3248.0,0.24550911]
[1767716945324,0.001,3249.5,3248.1,3.07872294]
[1767716945529,0.001,3249.5,3248.0,3.3243065]
[1767716945695,0.97526276,3249.5,3248.0,3.3243065]
[1767716945897,0.97526276,3249.5,3248.1,0.33243065]
[1767716946628,0.98350974,3249.4,3248.1,0.33243065]
[1767716946795,0.98350974,3249.4,3247.0,0.002]
[1767716946796,0.98350974,3248.8,3247.0,0.002]
[1767716946991,0.00924698,3248.4,3247.0,0.002]
[1767716947227,3.08808242,3248.0,3247.0,0.002]
[1767716947606,0.00924698,3247.8,3247.0,0.002]
[1767716948530,1.60112328,3247.8,3247.0,0.002]
[1767716948760,0.00924698,3247.4,3246.7,0.002]
[1767716949055,0.00924698,3247.4,3245.9,0.002]
[1767716949056,0.00924698,3247.2,3245.9,0.002]
[1767716949253,0.00924698,3247.0,3245.9,0.002]
[1767716949461,0.97426276,3246.6,3244.3,0.002]
[1767716949752,0.8,3246.5,3245.2,0.00924698]
[1767716950109,0.8,3246.5,3245.0,0.04006362]
[1767716950311,0.17742628,3246.4,3244.8,0.04006552]
[1767716950515,1.15168904,3246.4,3244.6,0.00924698]
[1767716950716,1.15168904,3246.4,3244.3,0.002]
[1767716950717,1.15168904,3246.4,3244.4,0.002]
[1767716950916,1.15168904,3246.4,3244.4,3.08422966]
[1767716951229,0.97426276,3246.0,3244.5,0.31786995]
[1767716951428,0.97426276,3245.8,3244.4,0.002]
[1767716952320,6.16123964,3246.1,3243.2,0.00924698]
[1767716952321,0.97426276,3245.3,3243.2,0.00924698]
[1767716952528,0.97426276,3245.1,3243.4,0.00924698]
[1767716952746,0.17742628,3245.0,3243.1,3.09271546]
[1767716953050,0.8,3244.9,3243.1,0.00924698]
[1767716953250,0.8,3244.9,3243.0,3.08353933]
[1767716953415,0.97426276,3245.1,3243.3,0.00924769]
[1767716953744,1.77426276,3245.1,3243.5,0.00924769]
[1767716953914,0.17742628,3245.0,3243.7,0.00924769]
[1767716954345,0.17742628,3245.0,3243.5,0.00924769]
[1767716954647,0.8,3245.3,3243.7,0.00924769]
[1767716954849,0.8,3245.3,3243.9,0.00924769]
[1767716955019,0.97426276,3245.7,3244.1,0.00924769]
[1767716955220,0.97426276,3245.7,3244.1,3.09170578]
[1767716955730,0.97426276,3245.6,3242.9,0.002]
[1767716955929,6.16202735,3245.7,3243.1,0.00924769]
[1767716955930,0.97426276,3245.4,3243.1,0.00924769]
[1767716956133,0.97426276,3245.4,3243.3,0.00924769]
[1767716956458,0.97426276,3245.4,3243.4,3.083159]
[1767716956676,0.97426276,3245.4,3242.9,0.002]
[1767716956968,0.97426276,3245.1,3242.9,0.002]
[1767716957135,0.97426276,3244.9,3242.8,0.002]
[1767716957320,0.97426276,3244.7,3242.8,0.002]
[1767716958456,0.97426276,3244.7,3242.8,0.00083106]
[1767716958961,0.97426276,3244.7,3242.9,0.00924855]
[1767716959184,0.97426276,3244.7,3242.8,0.00083106]
[1767716959391,9.24534996,3244.9,3242.1,0.003]
[1767716959392,1.13426276,3244.4,3242.1,0.003]
[1767716959694,0.97426276,3244.2,3242.1,0.003]
[1767716960671,0.97426276,3244.6,3242.2,0.95129724]
[1767716960878,0.97426276,3244.2,3242.3,0.0308423]
[1767716961251,0.97426276,3244.2,3242.2,0.92288928]
[1767716961481,0.17752628,3244.1,3242.3,0.17298893]
[1767716961775,1.15178904,3244.1,3242.3,0.17298893]
[1767716962586,1.18263134,3244.1,3242.2,3.08431106]
[1767716963001,1.18263134,3244.1,3242.2,6.16863651]
[1767716963208,4.05640176,3244.5,3242.3,0.0308423]
[1767716963500,0.0308423,3244.1,3242.3,3.11502986]
[1767716963705,0.0308423,3244.1,3242.3,6.19926019]
[1767716964011,0.97426276,3245.0,3242.4,0.94204698]
[1767716964181,0.97426276,3245.0,3242.6,0.94204698]
[1767716964182,0.8318423,3244.9,3242.6,0.94204698]
[1767716964383,0.97426276,3244.8,3242.6,0.94204698]
[1767716964568,0.97426276,3244.7,3242.6,0.94204698]
[1767716964764,0.97426276,3244.7,3242.7,0.03083849]
[1767716965093,0.0308423,3244.6,3242.6,0.94204698]
[1767716965291,0.0308423,3244.6,3242.7,0.19655258]
[1767716965493,3.082139,3244.5,3242.8,3.08375477]
[1767716965663,0.0308423,3244.4,3242.8,3.08375477]
[1767716965867,0.801,3244.3,3242.9,0.33111458]
[1767716966183,0.0308423,3244.2,3242.7,0.19655258]
[1767716966395,0.0308423,3244.2,3242.7,3.28039874]
[1767716966764,0.0308423,3244.2,3242.7,6.36424861]
[1767716967093,0.801,3244.3,3242.7,6.36424861]
[1767716967297,0.0308423,3244.5,3242.7,6.36424861]
[1767716967470,0.0308423,3244.5,3242.9,6.16731936]
[1767716967867,3.11298833,3244.5,3242.9,3.08365968]
[1767716968067,0.0308423,3244.5,3242.9,3.08365968]
[1767716968398,3.11298362,3244.5,3242.9,3.88765968]
[1767716968571,0.0308423,3244.5,3242.9,3.88765968]
[1767716968769,0.0308423,3244.5,3243.0,0.76078282]
[1767716968770,0.51966037,3244.5,3243.0,0.76078282]
[1767716969071,0.0308423,3244.5,3243.0,0.76078282]
[1767716969426,1.00510506,3244.5,3242.7,0.19655258]
[1767716969580,4.08728206,3244.5,3242.7,6.16762517]
[1767716969896,0.001,3243.9,3242.8,0.03082293]
[1767716970115,0.001,3243.9,3242.7,7.10967215]
[1767716970477,0.001,3243.9,3242.8,0.94204698]
[1767716971571,0.001,3243.9,3242.9,0.804]
[1767716971790,0.001,3243.9,3242.9,4.37063593]
[1767716971972,0.001,3243.9,3242.9,7.45429561]
[1767716972469,0.001,3243.9,3243.0,0.998936]
[1767716972670,4.04160206,3245.5,3243.0,0.998936]
[1767716972871,0.0308423,3245.4,3243.0,0.998936]
[1767716973105,0.0308423,3245.4,3243.2,0.998936]
[1767716973106,0.9511273,3245.2,3243.2,0.998936]
[1767716973309,0.0308423,3245.1,3243.2,0.998936]
[1767716973470,6.963449,3245.5,3243.4,0.998936]
[1767716973471,3.88219774,3245.5,3243.4,0.998936]
[1767716973673,3.91304004,3245.5,3243.4,0.998936]
[1767716974010,0.391304,3245.4,3243.5,2.02381341]
[1767716974305,0.0308423,3245.3,3243.6,0.998936]
[1767716974803,0.0308423,3245.4,3243.8,0.998936]
[1767716975005,0.9511273,3245.6,3243.5,1.02487741]
[1767716975177,0.51415498,3245.5,3243.8,0.804]
[1767716975373,0.9511273,3245.6,3243.8,0.804]
[1767716975374,0.9511273,3245.6,3243.8,1.802936]
[1767716975601,0.0308423,3245.5,3243.9,3.08270908]
[1767716975805,0.9819696,3245.5,3244.0,0.804]
[1767716976112,0.9819696,3245.5,3243.8,0.804]
[1767716976411,0.9819696,3245.5,3243.8,3.88675189]
[1767716976613,0.71441912,3245.4,3243.9,0.38867519]
[1767716976928,0.0308423,3245.3,3243.9,0.38867519]
[1767716977415,0.71441912,3245.4,3243.8,6.16560277]
[1767716977600,0.0308423,3245.3,3243.7,3.88686732]
[1767716977794,3.11222912,3245.3,3243.7,3.88686732]
[1767716978018,0.801,3245.2,3243.7,3.88686732]
[1767716978212,0.801,3245.2,3243.7,6.96976647]
[1767716978429,0.0308423,3245.4,3243.8,1.69591265]
[1767716978591,0.0308423,3245.3,3243.8,2.49991265]
[1767716978791,0.0308423,3245.4,3243.8,2.49991265]
[1767716979034,0.801,3245.6,3243.8,2.49991265]
[1767716979193,0.801,3245.6,3243.9,2.17379383]
[1767716979613,0.801,3245.6,3244.0,6.1652281]
[1767716979819,0.0308423,3245.6,3244.0,6.1652281]
[1767716980118,0.8318423,3245.6,3244.0,6.1652281]
[1767716980321,0.8318423,3245.6,3244.0,7.1641641]
[1767716980625,0.9511273,3246.0,3244.2,0.998936]
[1767716980793,0.801,3246.1,3244.2,0.998936]
[1767716980794,0.9819696,3245.9,3244.2,0.998936]
[1767716981731,4.06280414,3245.9,3244.3,3.082329]
[1767716982120,0.001,3244.9,3244.3,3.082329]
[1767716982320,0.001,3244.9,3244.2,3.08240083]
[1767716982621,0.001,3244.9,3244.3,0.4720303]
[1767716982826,0.001,3244.9,3244.1,3.08250363]
[1767716983123,0.001,3244.9,3243.0,0.998936]
[1767716983315,0.001,3244.9,3243.2,0.998936]
[1767716983626,0.001,3244.9,3243.4,3.08318431]
[1767716984221,0.001,3244.9,3243.3,0.998936]
[1767716984222,0.0318423,3244.9,3243.3,4.08217137]
[1767716984425,0.801,3244.8,3242.8,0.998936]
[1767716984592,0.0308423,3244.7,3243.2,3.08331894]
[1767716984794,0.0308423,3244.7,3243.3,3.08326306]
[1767716985292,0.9819696,3244.7,3243.0,0.804]
[1767716985496,0.17829696,3244.6,3243.1,3.0834615]
[1767716985696,3.11300103,3244.5,3243.0,4.06783904]
[1767716986000,3.11300597,3244.5,3243.0,0.9842936]
[1767716986228,0.0308423,3244.5,3243.0,4.06783651]
[1767716986944,3.11300532,3244.5,3243.0,5.06677251]
[1767716987225,0.32913023,3244.4,3243.1,1.50561325]
[1767716987426,0.9819696,3244.5,3243.1,0.50667725]
[1767716987626,0.9819696,3244.5,3243.0,3.0835525]
[1767716987823,0.9511273,3244.5,3243.0,6.1671171]
[1767716987993,0.9511273,3244.5,3243.0,3.0835525]
[1767716988322,0.9819696,3244.5,3243.0,3.0835525]
[1767716988525,4.47052555,3244.5,3243.1,0.69711934]
[1767716988722,4.47052555,3244.5,3243.0,0.804]
[1767716988723,1.38837624,3244.5,3243.0,0.804]
[1767716988913,1.38837624,3244.5,3242.9,4.88654101]
[1767716989222,0.0308423,3244.5,3243.0,0.998936]
[1767716989522,0.0308423,3244.6,3243.0,0.998936]
[1767716989825,0.0308423,3244.6,3243.1,3.08346951]
[1767716989826,3.11290774,3244.6,3243.1,3.08346951]
[1767716990025,0.001,3244.9,3244.0,1.00818626]
[1767716990325,0.001,3244.9,3244.1,0.83482519]
[1767716990638,0.001,3244.9,3244.2,0.18337612]
[1767716991135,0.001,3244.9,3243.1,10.25859479]
[1767716991304,0.001,3244.9,3243.2,1.802936]
[1767716991624,4.03390661,3244.9,3243.2,0.998936]
[1767716991822,0.9521273,3244.9,3243.4,3.08318431]
[1767716992199,0.9521273,3244.9,3243.4,6.16636862]
[1767716992523,0.9521273,3244.9,3243.5,0.69703686]
[1767716994330,4.03389927,3244.9,3243.8,0.002]
[1767716994526,0.001,3244.9,3243.8,0.002]
[1767716997147,0.001,3244.9,3243.8,1.000936]
[1767716998045,4.168e-05,3244.9,3243.8,4.08372846]
[1767716998718,4.168e-05,3244.9,3243.9,0.804]
[1767716999232,4.168e-05,3244.9,3243.9,0.38888706]
[1767716999563,4.168e-05,3244.9,3243.8,0.002]
[1767717000341,0.95138641,3244.9,3243.8,0.002]
[1767717000546,0.95134473,3244.7,3243.5,0.002]
[1767717001440,0.93129001,3244.6,3242.5,1.78064638]
[1767717001632,0.93129001,3244.6,3242.7,3.08379149]
[1767717001833,0.93129001,3244.4,3242.8,0.30837915]
[1767717002031,0.93129001,3244.2,3242.5,3.08402735]
[1767717002231,0.93129001,3243.7,3242.2,0.002]
[1767717002430,0.93129001,3243.7,3242.2,1.00948963]
[1767717002632,1.73229001,3244.1,3242.2,1.00948963]
[1767717002825,0.801,3244.0,3242.2,1.00948963]
[1767717003021,1.10451901,3243.9,3242.4,0.97664638]
[1767717003222,1.10451901,3243.9,3242.2,0.002]
[1767717004024,0.93129001,3243.5,3242.2,0.002]
[1767717004226,6.32036267,3243.3,3242.1,1e-08]
[1767717004457,1.43303627,3243.2,3242.1,1e-08]
[1767717004637,0.801,3243.1,3242.1,1e-08]
[1767717004953,3.88420627,3243.4,3242.1,1e-08]
[1767717005157,0.801,3243.4,3242.1,1e-08]
[1767717005322,0.00925055,3243.8,3242.1,1.00749058]
[1767717005521,0.0092514,3243.6,3242.1,0.97664639]
[1767717005755,0.0092514,3243.4,3242.1,0.97664639]
[1767717006256,0.0092514,3243.0,3242.2,6.1686509]
[1767717006465,1.13737231,3244.8,3242.5,0.97664638]
[1767717006631,0.2060823,3244.8,3242.5,0.97664638]
[1767717006831,0.2060823,3244.8,3242.9,0.97664638]
[1767717007029,4.168e-05,3244.9,3244.1,0.97664638]
[1767717007450,4.168e-05,3244.9,3244.2,0.17806464]
[1767717007648,0.0092514,3244.5,3242.5,0.97664638]
[1767717007954,0.93129001,3244.8,3242.7,0.97664638]
[1767717008157,0.0092514,3244.7,3243.0,6.1671292]
[1767717008357,0.0092514,3244.3,3243.1,1.02273528]
[1767717008860,0.0092514,3244.3,3242.2,0.97664638]
[1767717008861,0.0092514,3243.7,3242.2,0.97664638]
[1767717009166,0.0092514,3243.2,3241.7,2.7865518]
[1767717009357,0.0092514,3243.5,3242.0,3.08649539]
[1767717009561,0.0092514,3243.5,3242.0,3.08642571]
[1767717009763,0.0092514,3243.7,3242.2,3.08430523]
[1767717009937,1.73229001,3243.9,3242.4,0.31063052]
[1767717010260,0.801,3243.9,3242.5,6.16806394]
[1767717010425,0.801,3243.9,3242.5,6.19890434]
[1767717010627,0.8102514,3244.1,3242.5,6.19890434]
[1767717010827,0.94054141,3244.5,3242.5,9.28294443]
[1767717011058,0.801,3244.2,3242.5,6.16806394]
[1767717011366,4.168e-05,3244.9,3243.7,0.0092514]
[1767717011567,4.168e-05,3244.9,3243.8,0.804]
[1767717011764,4.168e-05,3244.9,3243.9,0.0092514]
[1767717012149,0.93129001,3246.1,3244.1,0.0092514]
[1767717012477,0.30889181,3246.9,3244.7,0.0092514]
[1767717012478,0.93129001,3246.6,3244.7,0.0092514]
[1767717012625,0.93129001,3246.6,3244.8,0.804]
[1767717012831,0.93129001,3246.6,3245.0,0.0092514]
[1767717013572,0.93129001,3246.6,3244.9,0.0092514]
[1767717013871,0.93129001,3246.6,3244.2,16.38876643]
[1767717013872,3.08014538,3246.6,3244.3,0.98589778]
[1767717014068,0.93129001,3246.5,3244.4,1.82731698]
[1767717014369,0.93129001,3246.3,3244.4,3.08223384]
[1767717014686,0.93129001,3246.1,3243.9,3.88663185]
[1767717014973,0.801,3246.2,3244.3,3.08229887]
[1767717014974,0.93129001,3245.9,3244.3,3.08229887]
[1767717015130,0.93129001,3245.9,3244.4,3.0821682]
[1767717015463,0.93129001,3245.9,3244.5,0.804]
[1767717016237,0.93129001,3245.9,3244.5,3.88613103]
[1767717016565,3.25398416,3246.0,3244.5,6.96827003]
[1767717016566,0.173229,3246.0,3244.5,6.96827003]
[1767717016762,1.73229001,3246.5,3244.6,0.696827]
[1767717016936,4.81254078,3246.5,3244.6,0.696827]
[1767717017133,1.73229001,3246.5,3244.7,0.97664638]
[1767717017968,0.15999999,3246.7,3245.0,0.98589778]
[1767717018270,3.24009558,3246.7,3245.1,3.08156913]
[1767717018484,3.24009558,3246.7,3245.2,0.71398374]
[1767717018485,0.32400956,3246.6,3245.2,0.71398374]
[1767717019138,0.32400956,3246.6,3245.3,0.804]
[1767717019139,0.93129001,3246.5,3245.3,0.804]
[1767717019341,3.24005723,3246.7,3245.3,0.804]
[1767717019342,0.15999999,3246.7,3245.3,0.804]
[1767717019530,0.15999999,3246.7,3245.0,6.16332818]
[1767717019736,1.09129,3246.7,3245.1,0.804]
[1767717020145,0.001,3245.6,3245.0,3.08166409]
[1767717020339,0.15999999,3246.7,3245.1,0.804]
[1767717020667,3.24010299,3246.7,3245.0,6.56915923]
[1767717020865,0.15999999,3246.7,3245.0,6.56915923]
[1767717021163,0.15999999,3246.7,3245.1,0.804]
[1767717021164,0.94054141,3246.6,3245.1,0.804]
[1767717021462,0.94054141,3246.6,3245.2,0.804]
[1767717022356,0.93129001,3246.1,3244.2,3.08242401]
[1767717022662,0.93129001,3246.1,3244.3,1.20990704]
[1767717022663,0.93129001,3245.9,3244.3,1.20990704]
[1767717023357,0.93129001,3246.1,3244.3,0.40590704]
[1767717023560,0.93129001,3245.9,3244.1,6.16502667]
[1767717023867,0.93129001,3245.8,3244.2,0.804]
[1767717024437,0.0092514,3246.2,3244.3,3.082329]
[1767717024639,6.16104984,3246.2,3244.3,4.05897538]
[1767717024970,0.70923399,3246.1,3244.4,0.79453851]
[1767717025475,0.70923399,3246.1,3244.5,0.97664638]
[1767717025770,0.801,3246.5,3244.4,0.79453851]
[1767717025771,0.93129001,3246.2,3244.4,0.79453851]
[1767717026071,0.94054141,3246.0,3244.5,0.804]
[1767717026365,7.09290927,3245.9,3244.5,0.804]
[1767717026603,0.94054141,3245.7,3243.3,0.97664638]
[1767717026746,0.93129001,3245.5,3243.6,3.08292566]
[1767717026937,4.58511901,3245.4,3243.7,1.11229257]
[1767717027249,1.34811901,3245.4,3243.7,0.804]
[1767717027561,0.93129001,3245.4,3243.6,3.08294636]
[1767717027871,0.93129001,3245.4,3243.7,0.804]
[1767717028245,4.01209964,3245.9,3243.8,0.97664638]
[1767717028442,0.93129001,3245.8,3243.9,3.08269173]
[1767717028674,0.93129001,3245.8,3244.0,0.804]
[1767717028871,0.71021607,3245.7,3244.1,0.38866917]
[1767717029070,1.64150608,3245.7,3244.1,0.38866917]
[1767717029241,0.71021607,3245.7,3244.1,0.38866917]
[1767717029441,7.09261285,3246.1,3244.2,0.97664638]
[1767717029753,7.09261285,3246.1,3244.1,0.38866917]
[1767717029754,0.94054141,3246.0,3244.1,0.38866917]
[1767717029948,0.93129001,3245.5,3244.2,0.804]
[1767717030271,0.93129001,3245.5,3243.0,0.002]
[1767717030272,0.93129001,3245.5,3243.5,4.05972576]
[1767717030481,6.16256854,3245.4,3243.6,0.804]
[1767717030684,0.93129001,3245.1,3243.0,0.97864638]
[1767717030859,0.93129001,3245.0,3243.2,3.08336032]
[1767717031060,0.93129001,3245.0,3243.3,0.38873603]
[1767717031371,0.93129001,3245.0,3243.0,0.002]
[1767717031372,0.0092514,3244.9,3243.0,0.002]
[1767717031549,0.9288269,3244.6,3243.1,0.804]
[1767717031945,0.9288269,3244.6,3243.1,3.88739054]
[1767717032189,1.7298269,3245.1,3243.1,3.88739054]
[1767717032487,3.08156913,3245.1,3243.3,3.08322691]
[1767717032650,3.08156913,3245.1,3243.4,0.40237596]
[1767717032978,4.8110572,3245.5,3243.9,0.002]
[1767717033176,7.8922875,3245.5,3244.0,0.804]
[1767717033382,0.9288269,3245.4,3244.0,0.804]
[1767717033572,0.78922875,3245.3,3244.0,0.804]
[1767717033768,0.001,3245.6,3244.0,0.804]
[1767717033950,0.001,3245.6,3244.0,1.74453268]
[1767717034151,0.001,3245.6,3244.1,0.94053268]
[1767717034351,0.30920145,3245.6,3244.2,0.17445327]
[1767717034581,0.001,3245.6,3244.3,3.082329]
[1767717034883,0.001,3245.6,3244.2,3.25683971]
[1767717036082,0.001,3245.6,3244.3,1.74453268]
[1767717036578,0.001,3245.6,3244.5,0.94053268]
[1767717036768,0.15999999,3246.7,3244.7,0.94053268]
[1767717037280,0.15999999,3246.7,3244.7,0.94978408]
[1767717037577,0.15999999,3246.7,3245.0,0.94053268]
[1767717037776,0.15999999,3246.7,3245.2,0.94053268]
[1767717038159,0.9288269,3248.1,3246.0,0.94053268]
[1767717038481,7.0862995,3248.1,3246.2,3.08052492]
[1767717038689,4.0075632,3248.1,3246.3,1.59456363]
[1767717038887,4.0168146,3248.1,3246.3,1.59456363]
[1767717039048,6.15687722,3248.4,3246.3,1.59456363]
[1767717039250,3.07843861,3248.4,3246.4,0.94053268]
[1767717039578,0.31709526,3248.3,3246.5,1.99804231]
[1767717039951,0.30784386,3248.3,3246.6,0.94053268]
[1767717040152,0.0092514,3248.9,3246.6,0.94053268]
[1767717040451,3.28379986,3249.1,3246.6,0.94053268]
[1767717040685,0.0092514,3248.9,3246.8,0.94053268]
[1767717040873,0.9380783,3248.7,3246.7,6.96410102]
[1767717041069,0.9380783,3248.7,3246.8,0.6964101]
[1767717041709,0.0092514,3248.3,3246.5,0.25350963]
[1767717041860,0.0092514,3248.1,3246.6,0.804]
[1767717042457,0.9380783,3248.3,3246.6,3.88412882]
[1767717042653,4.01669113,3248.3,3246.6,0.804]
[1767717042887,0.0092514,3247.9,3245.6,0.94053268]
[1767717043090,0.0092514,3247.9,3246.1,3.08060171]
[1767717043457,0.0092514,3247.9,3246.0,3.080679]
[1767717043755,0.0092514,3247.7,3246.1,0.804]
[1767717043957,0.0092514,3247.7,3246.2,0.804]
[1767717044154,0.9380783,3247.9,3246.2,0.804]
[1767717044587,0.9288269,3247.9,3246.2,0.804]
[1767717044889,0.9288269,3247.9,3246.2,3.88444951]
[1767717045086,0.40077238,3247.8,3246.2,7.66148073]
[1767717045389,3.48029728,3248.2,3246.2,7.66148073]
[1767717045390,0.9288269,3248.1,3246.2,4.58095581]
[1767717045585,0.9380783,3248.1,3246.3,0.804]
[1767717045787,0.9380783,3247.9,3246.3,0.804]
[1767717046660,0.001,3248.0,3246.4,3.08033514]
[1767717046966,0.001,3248.0,3246.3,4.82492611]
[1767717047159,0.001,3248.0,3246.3,7.90535613]
[1767717047364,0.34913181,3248.0,3246.4,1.73106829]
[1767717047558,0.34913181,3248.0,3246.4,1.70325289]
[1767717048457,4.00708047,3248.6,3246.4,1.70325289]
[1767717048458,0.2060185,3249.1,3247.3,0.94053268]
[1767717048661,0.2060185,3249.1,3247.4,0.8132514]
[1767717048862,0.2060185,3249.1,3247.8,0.0092514]
[1767717049089,0.2060185,3249.1,3247.9,0.803]
[1767717049956,0.2060185,3249.1,3247.9,1.74353268]
[1767717050202,0.2060185,3249.1,3248.0,1.12413735]
[1767717050567,0.2060185,3249.1,3247.7,0.0092514]
[1767717050767,0.2060185,3249.1,3247.8,0.803]
[1767717051108,0.2060185,3249.1,3247.9,1.75278408]
[1767717051257,0.2060185,3249.1,3248.1,0.0092514]
[1767717051460,0.001,3249.5,3248.1,0.94978408]
[1767717052060,0.001,3249.5,3248.1,0.94053268]
[1767717052261,0.001,3249.5,3248.2,0.803]
[1767717052462,0.001,3249.5,3248.3,0.94053268]
[1767717052865,0.001,3249.5,3248.4,9.23531583]
[1767717053066,0.001,3249.5,3248.4,10.17584851]
[1767717053284,0.001,3249.5,3248.4,7.0974099]
[1767717053486,0.001,3249.5,3248.5,0.94053268]
[1767717053682,0.001,3249.5,3248.6,1.51274099]
[1767717053894,0.001,3249.5,3248.6,0.70974099]
[1767717054080,0.001,3249.5,3248.7,0.803]
[1767717054287,0.001,3249.5,3248.7,1.74353268]
[1767717054988,0.001,3249.5,3248.8,3.07805959]
[1767717055192,0.001,3249.5,3248.9,0.48215923]
[1767717055782,0.001,3249.5,3249.0,0.803]
[1767717055965,0.001,3249.5,3249.1,0.803]
[1767717056373,0.93797304,3250.4,3249.1,0.801]
[1767717056601,0.9380783,3250.8,3249.1,0.801]
[1767717056792,0.9380783,3250.6,3249.1,0.801]
[1767717056984,0.9716299,3250.2,3249.1,0.803]
[1767717057189,0.9716299,3250.2,3248.2,0.17435327]
[1767717057365,0.0092514,3249.8,3248.3,0.803]
[1767717057570,0.9623785,3250.2,3248.3,0.99256874]
[1767717057798,0.9623785,3250.2,3248.4,3.07842138]
[1767717058094,0.9623785,3250.2,3248.3,1.91090283]
[1767717058281,0.9623785,3250.2,3248.6,3.07821338]
[1767717058484,0.001,3250.9,3248.3,0.99256874]
[1767717058485,0.9633785,3250.9,3249.0,3.07786935]
[1767717058697,0.9623785,3250.5,3249.1,0.803]
[1767717058998,0.001,3250.3,3249.2,0.803]
[1767717060464,0.9633785,3250.3,3248.4,0.91833409]
[1767717060664,0.9623785,3250.1,3247.9,0.91833409]
[1767717060875,0.9623785,3250.1,3248.1,3.07868791]
[1767717060876,4.03930157,3250.0,3248.1,3.07868791]
[1767717061103,4.03930157,3250.0,3248.2,0.38816879]
[1767717061104,0.71162067,3249.9,3248.2,0.38816879]
[1767717061467,0.9811789,3249.6,3247.4,0.96878425]
[1767717061711,0.9811789,3249.4,3247.5,0.803]
[1767717062007,0.9811789,3249.1,3246.9,3.07979866]
[1767717062209,0.9811789,3249.1,3246.7,3.08004192]
[1767717062210,0.9811789,3248.5,3246.7,0.803]
[1767717062699,0.799,3248.7,3247.1,3.07960567]
[1767717062870,0.9811789,3248.9,3246.7,4.85174185]
[1767717063071,0.9811789,3248.8,3246.8,3.07995564]
[1767717063274,0.9811789,3248.8,3246.8,6.15991128]
[1767717063473,0.9811789,3248.8,3246.0,3.08064]
[1767717063474,0.9811789,3248.8,3246.9,0.803]
[1767717063691,0.9811789,3248.8,3246.2,0.96878425]
[1767717063692,0.9811789,3248.6,3247.0,0.803]
[1767717064778,0.9811789,3249.1,3247.0,0.803]
[1767717064977,0.9811789,3249.1,3247.1,6.15934218]
[1767717065432,7.13673452,3249.1,3247.0,3.07973606]
[1767717065578,0.9811789,3249.0,3247.2,0.803]
[1767717065778,0.9811789,3248.8,3247.3,0.803]
[1767717065979,0.9811789,3248.8,3247.0,3.07974632]
[1767717065980,0.9811789,3248.8,3247.4,0.803]
[1767717067019,0.9811789,3249.3,3247.6,3.07919694]
[1767717067172,4.05877514,3249.3,3247.6,3.07919694]
[1767717067379,4.05877641,3249.3,3247.5,3.11004708]
[1767717067574,1.38705641,3249.2,3247.6,0.39130471]
[1767717067799,1.38705641,3249.2,3247.7,0.03079101]
[1767717068051,0.9811789,3249.7,3247.7,0.99957526]
[1767717068207,0.001,3250.3,3248.2,0.96878425]
[1767717068402,0.001,3250.3,3248.4,0.96878425]
[1767717068630,0.001,3250.3,3248.5,0.99956767]
[1767717068977,0.001,3250.3,3248.6,7.12528243]
[1767717069204,0.001,3250.3,3248.7,0.74638811]
[1767717069381,0.001,3250.3,3248.8,0.96878425]
[1767717069577,0.001,3250.3,3248.9,1.77178425]
[1767717069782,0.001,3250.3,3249.0,0.803]
[1767717070725,0.001,3250.3,3248.7,0.71560659]
[1767717070884,0.9821789,3250.3,3248.8,0.803]
[1767717071077,0.001,3249.9,3248.9,3.07796484]
[1767717071282,0.001,3249.9,3249.0,0.38809648]
[1767717072998,0.001,3249.9,3249.1,3.07777538]
[1767717073207,0.001,3249.9,3248.2,0.96878425]
[1767717073430,0.001,3249.9,3248.3,0.803]
[1767717073630,0.001,3249.9,3249.0,3.07786899]
[1767717073933,0.001,3249.9,3249.1,1.1107869]
[1767717075111,0.001,3249.9,3249.2,3.07768065]
[1767717075312,0.001,3250.3,3249.4,0.96878425]
[1767717075544,0.001,3250.9,3249.4,0.96878425]
[1767717075826,0.001,3250.9,3249.5,0.17810357]
[1767717076009,0.001,3250.9,3249.5,1.14688782]
[1767717077107,0.001,3250.9,3249.6,10.20068971]
[1767717077822,0.001,3250.9,3250.0,0.0092514]
[1767717078034,0.9811789,3252.5,3250.2,0.96878425]
[1767717078251,0.9811789,3252.5,3250.3,0.17717843]
[1767717078534,0.9811789,3252.5,3250.4,0.803]
[1767717079036,0.9811789,3252.5,3250.8,0.0092514]
[1767717079206,4.26163421,3252.9,3250.9,6.15214248]
[1767717079424,0.9811789,3252.7,3251.0,0.71301781]
[1767717079630,0.9811789,3252.7,3250.7,3.07625121]
[1767717079852,0.9811789,3252.7,3251.1,0.803]
[1767717080056,0.9811789,3252.7,3250.1,0.96878425]
[1767717080244,0.9811789,3252.7,3250.3,3.87958047]
[1767717080451,0.9811789,3252.7,3250.8,3.07616543]
[1767717080649,0.9811789,3252.7,3250.3,0.96878425]
[1767717080825,0.9811789,3252.7,3250.5,3.07644712]
[1767717081036,0.9811789,3252.3,3249.8,0.96878425]
[1767717081249,0.9811789,3252.1,3249.9,3.87993977]
[1767717081556,0.9811789,3251.9,3250.0,0.4848724]
[1767717081758,0.9811789,3251.9,3250.0,1.2868724]